bitfinex/quotes_ETHUSD_20250626
["timestamp","ask_amount","ask_price","bid_price","bid_amount"]
[1750905484396,1.775,2467.9,2467.6,0.2024]
[1750905484599,0.97019126,2467.8,2467.6,0.2024]
[1750905484808,3.21377842,2467.9,2467.6,0.2024]
[1750905485102,0.97020591,2467.8,2467.6,0.2024]
[1750905485300,3.21377842,2467.9,2467.6,0.2024]
[1750905485500,0.97014237,2467.8,2467.3,4.87185997]
[1750905485798,0.97017661,2467.7,2467.5,0.2024]
[1750905485977,0.97017661,2467.8,2467.5,0.2024]
[1750905486176,0.97018546,2467.7,2467.5,0.2024]
[1750905486383,0.97007849,2467.8,2467.5,0.2024]
[1750905486683,0.97007849,2467.7,2467.5,0.2024]
[1750905486889,0.97007849,2467.8,2467.5,0.2024]
[1750905487082,0.97007849,2467.7,2467.5,0.2024]
[1750905487284,0.97007849,2467.8,2467.5,0.2024]
[1750905487488,0.97007849,2467.7,2467.5,0.2024]
[1750905487674,3.63882032,2467.9,2467.5,0.2024]
[1750905487872,0.97013343,2467.8,2467.5,0.2024]
[1750905488096,0.97013343,2467.7,2467.5,0.2024]
[1750905488297,0.97013343,2467.8,2467.5,0.2024]
[1750905488597,0.97013343,2467.7,2467.5,0.2024]
[1750905488771,1.9774,2467.9,2467.5,0.2024]
[1750905488972,0.97018136,2467.8,2467.5,0.2024]
[1750905489174,0.97018136,2467.7,2467.5,0.2024]
[1750905489369,0.97023707,2467.6,2467.5,0.2024]
[1750905490037,7.09150321,2467.8,2467.5,0.2024]
[1750905490038,0.97023707,2467.7,2467.5,0.2024]
[1750905490303,0.97023707,2467.6,2467.5,0.2024]
[1750905490470,0.97023707,2467.7,2467.5,0.2024]
[1750905490669,0.97023707,2467.6,2467.5,0.2024]
[1750905490897,0.97023707,2467.7,2467.5,0.2024]
[1750905491097,0.97023707,2467.6,2467.5,0.2024]
[1750905491501,0.97023707,2467.7,2467.5,0.2024]
[1750905491705,8.24756556,2467.8,2467.5,0.2024]
[1750905491706,0.97023707,2467.6,2467.5,0.2024]
[1750905491886,0.97023707,2467.7,2467.5,0.2024]
[1750905492090,8.24756556,2467.8,2467.5,0.2024]
[1750905492302,0.97031986,2467.7,2467.5,0.2024]
[1750905492501,0.97031986,2467.6,2467.5,0.2024]
[1750905493512,0.97031986,2467.8,2467.5,0.2024]
[1750905493691,0.97031986,2467.7,2467.5,0.2024]
[1750905493891,0.97031986,2467.6,2467.5,0.2024]
[1750905497133,0.7895,2467.5,2467.1,0.2024]
[1750905497309,2.74431986,2467.4,2467.1,0.2024]
[1750905497506,0.97031986,2467.3,2467.1,0.2024]
[1750905497707,1.774,2467.4,2466.7,0.7719]
[1750905497708,0.97071703,2467.2,2466.7,0.7719]
[1750905498029,12.91849086,2467.4,2466.8,0.2024]
[1750905498030,0.97071703,2467.1,2466.8,0.2024]
[1750905498334,0.97023059,2467.2,2466.8,0.2024]
[1750905498504,0.7546,2467.0,2466.5,0.7692]
[1750905498702,2.74423059,2466.9,2466.7,0.2024]
[1750905498904,1.774,2466.9,2466.7,0.2024]
[1750905499134,0.97033596,2466.8,2466.3,4.05465186]
[1750905499333,2.74433596,2466.9,2466.5,0.2024]
[1750905500517,1.774,2466.9,2466.5,0.2024]
[1750905501215,0.55,2466.7,2466.0,0.8147]
[1750905501429,0.2024,2466.4,2466.0,0.2024]
[1750905501630,1.775,2466.3,2466.0,0.2024]
[1750905506148,0.7659,2466.2,2466.0,0.2024]
[1750905507614,7.85740321,2466.2,2465.7,4.05555156]
[1750905507813,0.2024,2466.1,2465.7,4.05555156]
[1750905508445,0.2024,2466.1,2465.6,1.0299]
[1750905508649,0.9683,2466.2,2465.8,4.25777655]
[1750905510524,0.9683,2466.2,2465.8,0.2024]
[1750905510733,7.09150321,2466.1,2465.4,0.7782]
[1750905510937,7.29390321,2466.1,2465.6,4.25820387]
[1750905511121,7.29390321,2466.1,2465.7,4.05556292]
[1750905512661,7.29390321,2466.1,2465.6,0.2024]
[1750905512826,7.29390321,2466.1,2465.6,4.25817567]
[1750905513356,7.29390321,2466.1,2465.6,4.25813849]
[1750905513759,8.37573156,2466.1,2465.6,0.2024]
[1750905514053,8.37573156,2466.1,2465.7,4.05549996]
[1750905514429,8.37573156,2466.1,2465.8,4.05532092]
[1750905514927,0.2024,2466.1,2465.9,4.05517474]
[1750905515158,0.2024,2466.2,2465.9,4.05515918]
[1750905515550,0.2024,2466.2,2466.0,4.0551227]
[1750905516061,1.773,2466.1,2466.0,4.0551227]
[1750905516756,1.773,2466.1,2466.0,0.2024]
[1750905517379,1.773,2466.1,2465.9,4.05517319]
[1750905517687,1.773,2466.1,2465.8,4.05540935]
[1750905517990,1.9754,2466.1,2465.9,4.05528997]
[1750905518992,1.9754,2466.1,2465.8,4.055464]
[1750905520186,1.9754,2466.1,2465.7,0.2024]
[1750905520482,0.8078,2466.0,2465.7,4.25801116]
[1750905520887,0.8078,2466.0,2465.8,4.05545696]
[1750905521304,1.9754,2466.1,2465.8,4.05545696]
[1750905524298,1.9754,2466.1,2465.7,4.25797854]
[1750905526015,1.9754,2466.1,2465.7,0.2024]
[1750905526685,1.9754,2466.1,2465.7,4.25798138]
[1750905526887,1.9754,2466.1,2465.7,0.2024]
[1750905527097,1.9754,2466.1,2465.8,4.05538068]
[1750905527594,1.9754,2466.1,2465.7,4.25796941]
[1750905527801,1.9754,2466.1,2465.8,4.05544304]
[1750905528190,2.94323331,2466.1,2465.8,4.05544304]
[1750905528699,2.94323331,2466.1,2465.7,0.2024]
[1750905528700,2.94323331,2466.1,2465.9,4.0552856]
[1750905528879,1.773,2466.1,2465.9,4.0552105]
[1750905529198,2.5992,2467.0,2466.3,0.7927]
[1750905529408,2.5992,2467.0,2466.6,4.05410843]
[1750905529409,0.97022076,2466.9,2466.6,4.05410843]
[1750905529573,0.97022076,2466.9,2466.8,0.2024]
[1750905529771,1.773,2467.0,2466.8,5.04893492]
[1750905529984,1.773,2467.0,2466.9,4.25607059]
[1750905530212,1.773,2467.0,2466.9,0.2024]
[1750905530506,2.74278963,2467.0,2466.7,0.2024]
[1750905530704,1.773,2467.0,2466.8,4.05382317]
[1750905530919,1.773,2467.0,2466.9,0.2024]
[1750905540801,1.773,2467.0,2466.9,5.08637059]
[1750905541002,1.773,2467.0,2466.9,0.2024]
[1750905543919,1.773,2467.0,2466.5,6.707]
[1750905543920,1.773,2467.0,2466.5,0.8303]
[1750905544100,1.9754,2467.0,2466.6,4.05408309]
[1750905545020,1.9754,2467.0,2466.7,4.05392838]
[1750905545817,1.9754,2467.0,2466.6,4.05414057]
[1750905546411,3.22786,2467.0,2466.5,4.2566567]
[1750905547012,0.7604,2466.9,2466.2,4.054764]
[1750905547197,0.2024,2466.8,2466.5,4.05429371]
[1750905548021,0.2024,2466.8,2466.4,4.25673379]
[1750905548703,0.2024,2466.8,2466.4,0.2024]
[1750905548895,7.29390321,2466.8,2466.4,0.2024]
[1750905549621,8.40187953,2466.8,2466.4,0.2024]
[1750905549831,0.2024,2466.6,2466.2,4.25722118]
[1750905549998,1.769,2466.5,2466.3,4.05465677]
[1750905550493,1.769,2466.5,2466.2,0.2024]
[1750905550693,1.769,2466.5,2466.3,4.05455453]
[1750905551105,1.769,2466.5,2466.2,4.25719214]
[1750905551306,0.771,2466.4,2466.2,0.2024]
[1750905552418,1.769,2466.5,2466.2,0.2024]
[1750905552929,1.769,2466.5,2466.3,4.05465677]
[1750905553421,1.769,2466.5,2466.2,4.25713896]
[1750905555529,1.769,2466.5,2466.2,0.2024]
[1750905555829,1.769,2466.5,2466.2,4.25721518]
[1750905557227,1.769,2466.5,2466.3,4.05463737]
[1750905557607,1.769,2466.5,2466.3,4.96281774]
[1750905559129,1.769,2466.5,2466.3,0.90818037]
[1750905559309,1.769,2466.5,2466.2,5.02693786]
[1750905559508,1.769,2466.5,2466.3,4.05465026]
[1750905560210,1.769,2466.5,2466.4,4.05449237]
[1750905560827,2.73632338,2466.7,2466.2,0.7698]
[1750905561132,1.769,2466.7,2466.6,4.05416362]
[1750905561430,1.769,2466.7,2466.6,4.86306362]
[1750905562330,1.769,2466.7,2466.6,0.8089]
[1750905562629,1.769,2466.7,2466.4,10.95983241]
[1750905562832,1.769,2466.7,2466.4,13.21619304]
[1750905564032,1.769,2466.7,2466.5,4.05420635]
[1750905564435,1.769,2466.7,2466.6,4.86016362]
[1750905564605,1.769,2466.7,2466.6,5.06256362]
[1750905570934,0.97009989,2467.0,2466.8,4.05374166]
[1750905571158,0.97009989,2467.0,2466.9,0.40537417]
[1750905571390,0.97009989,2467.0,2466.9,0.60777417]
[1750905572253,0.97009989,2467.0,2466.9,0.2024]
[1750905579619,0.97005919,2467.0,2466.9,0.2024]
[1750905580356,0.97005919,2467.0,2466.6,6.698]
[1750905580530,1.79245919,2466.9,2466.7,0.2024]
[1750905580732,0.97005919,2466.8,2466.5,6.698]
[1750905581054,0.97005919,2466.8,2466.5,6.9004]
[1750905582227,0.97025939,2466.8,2466.5,6.9004]
[1750905582418,0.97039094,2466.7,2466.5,6.9004]
[1750905582624,0.97039094,2466.8,2466.5,6.9004]
[1750905582824,2.08969624,2466.9,2466.5,6.9004]
[1750905583024,0.97038281,2466.8,2466.5,6.9004]
[1750905583330,0.97047191,2466.7,2466.5,0.2024]
[1750905584335,1.30600791,2466.8,2466.5,0.2024]
[1750905584536,0.97059706,2466.7,2466.5,0.2024]
[1750905584837,2.08969624,2466.9,2466.5,0.2024]
[1750905585035,0.97059986,2466.8,2466.5,0.2024]
[1750905585248,0.97059986,2466.7,2466.3,4.05449418]
[1750905585448,1.765,2466.6,2466.3,10.95389418]
[1750905586179,1.765,2466.6,2466.4,4.054491]
[1750905586340,2.7357231,2466.6,2466.4,4.054491]
[1750905586540,1.765,2466.6,2466.4,4.054491]
[1750905586839,2.7357231,2466.6,2466.4,4.054491]
[1750905587177,1.765,2466.6,2466.4,4.054491]
[1750905587339,2.7357231,2466.6,2466.4,4.054491]
[1750905587540,1.765,2466.6,2466.3,6.8994]
[1750905588281,0.97099572,2466.5,2466.3,6.8994]
[1750905588452,1.765,2466.6,2466.3,6.8994]
[1750905589008,1.74373272,2466.5,2466.1,6.696]
[1750905589298,0.97093272,2466.4,2466.1,6.696]
[1750905589465,0.97093272,2466.3,2466.1,6.696]
[1750905589662,0.97093272,2466.4,2466.0,4.25744639]
[1750905589904,0.97093272,2466.3,2466.0,0.2024]
[1750905590214,8.06670321,2466.5,2466.0,6.8984]
[1750905590500,0.97060493,2466.4,2466.0,6.8984]
[1750905590705,0.97060493,2466.3,2466.0,6.8984]
[1750905590999,0.97060493,2466.4,2466.0,6.8984]
[1750905591300,0.97060493,2466.3,2466.0,0.2024]
[1750905591488,0.97060493,2466.4,2466.0,0.2024]
[1750905591692,0.97060493,2466.3,2466.0,0.2024]
[1750905591873,0.97060493,2466.4,2466.0,0.2024]
[1750905592069,0.97060493,2466.3,2466.0,0.2024]
[1750905592298,1.17300493,2466.2,2465.8,10.95375866]
[1750905593170,1.765,2466.1,2465.8,4.25775866]
[1750905593697,1.765,2466.1,2465.9,4.05529005]
[1750905594608,1.765,2466.1,2466.0,4.05515004]
[1750905595224,1.765,2466.1,2465.9,5.75847945]
[1750905595707,1.765,2466.1,2466.0,4.05515004]
[1750905602337,1.765,2466.1,2465.9,5.75848551]
[1750905603836,7.09150321,2466.0,2464.7,4.05715771]
[1750905604009,7.09150321,2466.0,2465.3,4.87392898]
[1750905604202,0.8087,2465.9,2465.4,4.05604133]
[1750905604817,0.8087,2465.9,2465.3,4.05616363]
[1750905605339,1.87212192,2465.9,2465.3,4.05616363]
[1750905605643,1.87212192,2465.9,2465.4,4.05611961]
[1750905606134,1.87212192,2465.9,2465.4,4.05610079]
[1750905606322,0.8087,2465.9,2465.4,4.05610079]
[1750905606706,10.8087,2465.9,2465.1,0.8177]
[1750905607041,7.09150321,2465.4,2464.6,0.7792]
[1750905607213,0.8109,2465.0,2464.4,4.05775924]
[1750905607416,1.761,2464.9,2464.4,0.81158714]
[1750905607614,7.09150321,2464.8,2464.1,4.83735611]
[1750905607819,0.8109,2464.7,2463.9,0.7792]
[1750905608014,7.09150321,2464.5,2463.5,4.05926527]
[1750905608225,2.5719,2464.4,2463.6,10.75104582]
[1750905608536,2.5719,2464.4,2463.8,4.05866122]
[1750905608942,2.5719,2464.4,2463.7,4.05893108]
[1750905609151,2.5719,2464.4,2463.7,5.53994042]
[1750905610045,2.5719,2464.4,2463.8,4.05871435]
[1750905610235,2.5719,2464.4,2463.7,5.53988749]
[1750905610749,2.5719,2464.4,2463.8,4.05874095]
[1750905611725,2.5719,2464.4,2463.8,3.80874095]
[1750905611926,3.5685896,2464.4,2463.7,5.53990411]
[1750905612128,3.5685896,2464.4,2463.6,6.692]
[1750905612327,10.0,2464.3,2463.6,6.694]
[1750905612533,10.0,2464.3,2463.6,10.75309818]
[1750905613252,10.7798,2464.1,2463.4,4.0592994]
[1750905613455,10.7798,2464.1,2463.2,6.693]
[1750905613653,12.56693032,2464.1,2463.5,4.05919037]
[1750905614155,12.56693032,2464.1,2463.7,0.2024]
[1750905615156,0.55,2464.0,2463.7,0.2024]
[1750905615347,0.2024,2463.8,2463.4,0.2024]
[1750905616859,0.7956,2463.7,2463.4,0.2024]
[1750905617238,1.78075032,2463.7,2463.4,0.2024]
[1750905619660,1.78075032,2463.7,2463.4,4.26181562]
[1750905619955,1.78075032,2463.7,2463.4,0.2024]
[1750905620159,1.78075032,2463.7,2463.4,4.26181335]
[1750905620360,0.7956,2463.7,2463.4,4.26181335]
[1750905621963,0.7956,2463.7,2463.4,0.2024]
[1750905622650,0.7956,2463.7,2463.4,4.26180079]
[1750905624058,0.7956,2463.7,2463.4,0.2024]
[1750905624931,1.763,2463.9,2463.5,0.7692]
[1750905625253,1.763,2463.9,2463.8,4.261171]
[1750905627249,2.5849,2463.9,2463.8,0.2024]
[1750905627425,2.5849,2463.9,2463.7,4.0588444]
[1750905627631,2.5849,2463.9,2463.6,0.2024]
[1750905627828,2.86363,2463.9,2463.6,4.26148486]
[1750905628229,2.5849,2463.9,2463.6,4.26148486]
[1750905629255,1.763,2463.9,2463.6,0.2024]
[1750905629431,1.763,2463.9,2463.6,4.26142725]
[1750905629836,1.763,2463.9,2463.6,0.2024]
[1750905630645,8.08840321,2463.8,2463.4,0.2024]
[1750905630850,0.98514032,2463.7,2463.4,0.2024]
[1750905631246,0.7945,2463.4,2462.9,4.06025018]
[1750905631438,1.758,2463.3,2463.2,0.2024]
[1750905631647,1.758,2463.3,2463.0,4.06006487]
[1750905631836,1.758,2463.3,2463.0,4.26246487]
[1750905632036,1.758,2463.3,2463.0,0.2024]
[1750905632444,7.09150321,2463.2,2463.0,0.2024]
[1750905632648,7.29390321,2463.2,2462.8,0.2024]
[1750905632950,0.2024,2463.1,2462.7,4.26286891]
[1750905633545,0.2024,2463.1,2462.7,0.2024]
[1750905633955,0.2024,2463.1,2462.7,4.26296965]
[1750905634962,1.59355063,2463.1,2462.7,4.26296965]
[1750905635558,2.56001664,2463.1,2462.8,4.06040022]
[1750905635796,0.765,2463.0,2462.2,0.769]
[1750905635982,0.9674,2463.0,2462.6,4.06073456]
[1750905636161,0.9674,2463.0,2462.5,4.26323758]
[1750905636357,1.59958336,2463.0,2462.5,4.26323758]
[1750905636555,0.96866913,2462.9,2462.7,4.06057816]
[1750905636759,0.96865905,2462.9,2462.5,0.2024]
[1750905636985,0.96867021,2462.9,2462.5,0.2024]
[1750905637188,1.758,2462.8,2462.5,4.26325122]
[1750905637461,1.758,2462.8,2462.7,4.06058391]
[1750905637657,1.39115063,2463.1,2462.9,4.06013592]
[1750905637658,0.2024,2463.1,2462.9,4.06013592]
[1750905637899,1.758,2463.2,2462.8,4.06029603]
[1750905638197,1.758,2463.2,2462.7,0.2024]
[1750905638198,0.96916892,2463.1,2462.7,0.2024]
[1750905638501,1.26212581,2463.0,2462.7,0.2024]
[1750905638660,0.96916892,2462.9,2462.7,0.2024]
[1750905638852,0.49535689,2463.0,2462.5,4.26325154]
[1750905639052,0.96915985,2462.9,2462.5,4.26325154]
[1750905639289,0.49535689,2463.0,2462.5,4.26325154]
[1750905639505,1.75658115,2462.9,2462.4,4.06099469]
[1750905639686,1.1715094,2462.8,2462.4,4.06099469]
[1750905639873,2.72713599,2462.7,2462.4,4.06099469]
[1750905640068,2.72713599,2462.7,2462.3,0.2024]
[1750905640259,1.758,2462.7,2462.3,0.2024]
[1750905640759,1.73618027,2462.6,2462.0,0.1779807]
[1750905640953,0.2024,2462.4,2462.0,4.23963048]
[1750905641158,0.2024,2462.4,2462.0,0.1779807]
[1750905641358,0.2024,2462.4,2462.2,4.06128487]
[1750905641553,0.2024,2462.4,2462.1,4.06152011]
[1750905641554,1.758,2462.5,2462.3,4.2635596]
[1750905642160,1.758,2462.5,2462.4,4.06107862]
[1750905642360,1.758,2462.5,2462.3,4.26357418]
[1750905642757,1.73578072,2462.6,2462.5,4.0609137]
[1750905642758,0.96868072,2462.6,2462.5,4.0609137]
[1750905642991,1.758,2462.7,2462.5,4.0609137]
[1750905643187,2.72638944,2462.7,2462.6,4.0607488]
[1750905643374,1.758,2462.7,2462.6,4.0607488]
[1750905646093,1.758,2462.7,2462.5,4.06085045]
[1750905646295,2.85236955,2462.7,2462.4,4.26341131]
[1750905646497,0.7575,2462.6,2462.4,4.26341131]
[1750905646881,0.7575,2462.6,2462.4,0.2024]
[1750905647196,3.82074308,2462.7,2462.5,4.0609137]
[1750905647391,1.758,2462.7,2462.5,4.0609137]
[1750905647588,2.72628196,2462.7,2462.4,0.2024]
[1750905647793,2.72628196,2462.7,2462.4,4.26339081]
[1750905648307,2.72628196,2462.7,2462.4,0.2024]
[1750905648520,7.81,2462.8,2462.7,4.06058391]
[1750905648673,9.569,2462.8,2462.6,0.2024]
[1750905648877,9.569,2462.8,2462.6,4.26314231]
[1750905649583,9.569,2462.8,2462.6,0.2024]
[1750905649785,9.569,2462.8,2462.6,4.26304064]
[1750905650011,9.569,2462.8,2462.6,4.26309022]
[1750905650174,9.569,2462.8,2462.7,4.06058391]
[1750905650509,9.569,2462.8,2462.6,4.2631113]
[1750905650675,9.569,2462.8,2462.6,0.2024]
[1750905650871,0.96828196,2463.0,2462.7,4.06056342]
[1750905651100,11.759,2463.0,2462.9,0.2024]
[1750905651706,1.759,2463.0,2462.9,4.26265417]
[1750905652709,1.759,2463.0,2462.9,0.2024]
[1750905653003,2.72719008,2463.0,2462.9,0.2024]
[1750905653781,2.72719008,2463.0,2462.7,4.06048046]
[1750905654108,2.72719008,2463.0,2462.7,4.26288046]
[1750905654787,4.99404909,2463.0,2462.7,0.2024]
[1750905654982,4.99404909,2463.0,2462.7,4.26295745]
[1750905656115,0.7501,2462.9,2462.5,4.0608783]
[1750905656318,1.92069008,2462.9,2462.5,4.2632783]
[1750905656491,3.6469457,2462.9,2462.5,4.2632783]
[1750905656697,0.96819008,2462.8,2462.5,4.2632783]
[1750905657214,2.67875562,2462.9,2462.7,4.06058391]
[1750905657388,0.96981624,2462.8,2462.7,4.06058391]
[1750905657986,0.96981624,2462.9,2462.7,4.06058391]
[1750905658211,11.759,2463.0,2462.6,0.2024]
[1750905658416,0.2024,2462.8,2462.6,4.06062226]
[1750905658619,0.2024,2462.8,2462.7,4.06058391]
[1750905659313,0.97088695,2462.8,2462.6,4.26307086]
[1750905659524,11.9614,2463.0,2462.5,4.06091022]
[1750905659525,0.8234,2462.9,2462.5,4.06088368]
[1750905659686,0.970944,2462.8,2462.5,4.06088368]
[1750905659996,0.970944,2462.7,2462.4,0.2024]
[1750905660195,0.970944,2462.6,2462.4,4.26343207]
[1750905660395,2.95304,2462.9,2462.4,4.26343207]
[1750905660608,0.97172096,2462.8,2462.4,0.2024]
[1750905660819,0.97172096,2462.7,2462.4,0.2024]
[1750905661007,0.97172096,2462.6,2462.4,0.2024]
[1750905661210,2.95304,2462.9,2462.4,4.26339119]
[1750905661414,2.44339175,2462.8,2462.4,0.2024]
[1750905661616,0.97218775,2462.7,2462.5,4.06078965]
[1750905661819,0.97218775,2462.6,2462.5,4.06078965]
[1750905662788,0.97218775,2462.6,2462.4,4.26345488]
[1750905663119,1.471204,2462.8,2462.4,4.26345488]
[1750905663321,0.97244274,2462.7,2462.4,4.26345488]
[1750905663529,0.97244274,2462.6,2462.5,4.0609137]
[1750905663722,0.97244274,2462.6,2462.4,4.26345488]
[1750905663723,0.97244274,2462.6,2462.4,0.2024]
[1750905663927,2.72744274,2462.5,2462.4,0.2024]
[1750905664234,1.755,2462.5,2462.4,0.2024]
[1750905664398,2.72744274,2462.5,2462.4,0.2024]
[1750905664719,3.28511701,2462.5,2462.0,0.3803807]
[1750905664893,3.28511701,2462.5,2462.3,0.2024]
[1750905664894,1.755,2462.5,2462.3,0.2024]
[1750905665088,1.755,2462.5,2462.3,1.0136]
[1750905665293,1.755,2462.5,2462.4,4.06107862]
[1750905665718,10.7505,2462.9,2462.5,4.06081396]
[1750905666037,2.7274049,2462.8,2462.4,0.2024]
[1750905666194,0.9724049,2462.7,2462.5,4.06088241]
[1750905666518,1.755,2462.8,2462.6,4.06073972]
[1750905666722,0.97243901,2462.7,2462.6,4.0607488]
[1750905666890,0.97243901,2462.7,2462.5,4.06085128]
[1750905667219,1.755,2462.8,2462.5,4.06085128]
[1750905667417,0.97245458,2462.7,2462.5,4.06085128]
[1750905667616,1.755,2462.8,2462.5,4.06085128]
[1750905667915,1.755,2462.8,2462.6,4.0607488]
[1750905668092,1.755,2462.8,2462.6,0.2024]
[1750905668292,0.97246648,2462.7,2462.6,0.2024]
[1750905669728,0.2024,2462.6,2462.2,4.06125047]
[1750905669895,0.97246648,2462.5,2462.3,4.06122805]
[1750905670096,0.2024,2462.6,2462.2,4.06128356]
[1750905670341,0.97257171,2462.5,2462.2,4.06128356]
[1750905670493,0.2024,2462.6,2462.2,4.06128356]
[1750905670816,0.97257851,2462.5,2462.4,4.06107862]
[1750905670985,1.755,2462.8,2462.4,4.06107862]
[1750905671190,0.97249775,2462.7,2462.5,4.06086393]
[1750905671408,0.9726181,2462.6,2462.5,4.06086393]
[1750905671893,0.9726181,2462.7,2462.6,4.0607488]
[1750905672795,0.9726181,2462.7,2462.5,5.0705316]
[1750905673097,0.9726607,2462.6,2462.5,4.2632316]
[1750905673411,0.9726607,2462.6,2462.5,4.2633137]
[1750905673722,0.9726607,2462.7,2462.6,4.0607488]
[1750905674327,0.9726607,2462.7,2462.5,4.26325383]
[1750905674625,1.755,2462.8,2462.6,4.0607488]
[1750905674793,0.97264685,2462.7,2462.5,4.26326096]
[1750905674993,1.755,2462.8,2462.5,4.26326096]
[1750905675194,0.97264699,2462.7,2462.5,4.26326096]
[1750905675496,1.755,2462.8,2462.5,4.26326096]
[1750905675695,0.97266036,2462.7,2462.5,0.2024]
[1750905675896,0.97268139,2462.6,2462.5,0.2024]
[1750905677024,0.97268139,2462.6,2462.1,0.833]
[1750905677216,3.90027,2462.8,2462.5,4.0609137]
[1750905677410,2.3627016,2462.7,2462.5,4.06090188]
[1750905677734,1.755,2462.8,2462.6,4.06061973]
[1750905678024,1.755,2462.8,2462.6,4.26301973]
[1750905678323,1.755,2462.8,2462.6,4.26310691]
[1750905678796,1.755,2462.8,2462.7,4.06058391]
[1750905679138,12.72757148,2462.8,2462.7,4.06058391]
[1750905679524,12.72757148,2462.8,2462.6,0.2024]
[1750905679714,0.97257148,2462.7,2462.6,0.2024]
[1750905680293,0.97257148,2462.7,2462.4,4.26336288]
[1750905680513,0.97257148,2462.6,2462.4,4.26336288]
[1750905680802,11.755,2462.8,2462.4,4.26336288]
[1750905681096,0.97267385,2462.7,2462.4,4.26336288]
[1750905681312,0.97267385,2462.6,2462.5,4.0609137]
[1750905681801,0.97276544,2462.7,2462.6,4.06072347]
[1750905682323,0.97276544,2462.7,2462.6,0.2024]
[1750905682530,0.97276544,2462.7,2462.2,4.06139231]
[1750905682725,11.755,2462.8,2462.3,4.26351142]
[1750905682726,0.97276544,2462.6,2462.3,4.26351142]
[1750905682903,0.97276544,2462.5,2462.3,4.26351142]
[1750905683102,11.9574,2462.8,2462.3,4.26351142]
[1750905683296,2.83757255,2462.7,2462.3,4.26351142]
[1750905683500,0.97303255,2462.6,2462.3,4.26351142]
[1750905683711,0.97303255,2462.5,2462.3,4.26351142]
[1750905683912,1.86454,2462.7,2462.3,4.26351142]
[1750905684113,0.97305691,2462.6,2462.3,4.26351142]
[1750905684402,0.97305691,2462.5,2462.3,4.26351142]
[1750905684621,1.86454,2462.7,2462.3,4.26351142]
[1750905684833,0.97307217,2462.6,2462.3,4.26351142]
[1750905685031,0.97307217,2462.5,2462.3,4.26351142]
[1750905685233,1.86454,2462.7,2462.3,4.26351142]
[1750905685528,0.97310642,2462.6,2462.3,4.26351142]
[1750905685698,0.97310642,2462.5,2462.4,4.06107862]
[1750905686333,11.9574,2462.8,2462.5,4.06085685]
[1750905686531,2.72807317,2462.7,2462.6,4.0607488]
[1750905686733,2.72807317,2462.7,2462.4,4.06107862]
[1750905686734,2.72807317,2462.7,2462.5,4.26325285]
[1750905686904,0.97307317,2462.6,2462.5,0.2024]
[1750905688329,0.97307317,2462.6,2462.3,4.06116156]
[1750905688534,0.97307317,2462.5,2462.4,4.06107862]
[1750905688730,0.97307317,2462.5,2462.4,4.84687862]
[1750905688931,2.72607317,2462.5,2462.4,4.84687862]
[1750905689308,1.753,2462.5,2462.4,4.84687862]
[1750905689508,2.72623915,2462.5,2462.4,4.84687862]
[1750905689709,2.72623915,2462.5,2462.4,4.06107862]
[1750905693539,2.72623915,2462.5,2462.4,3.91107862]
[1750905694241,2.72623915,2462.5,2462.4,3.76107862]
[1750905694612,2.72623915,2462.5,2462.3,4.26354303]
[1750905694933,1.753,2462.5,2462.3,0.1024]
[1750905695236,1.753,2462.5,2462.3,4.16357385]
[1750905695718,1.753,2462.5,2462.3,4.16356759]
[1750905695916,1.753,2462.5,2462.4,4.06107862]
[1750905696122,2.72620884,2462.5,2462.4,4.06107862]
[1750905697040,0.97320884,2462.5,2462.4,4.06107862]
[1750905697229,2.72620884,2462.5,2462.4,3.96107862]
[1750905697806,0.97320884,2462.5,2462.4,3.96107862]
[1750905698010,2.72620884,2462.5,2462.4,3.96107862]
[1750905700507,0.97320884,2462.5,2462.4,3.96107862]
[1750905700709,1.753,2462.6,2462.5,4.06080655]
[1750905700935,2.72625966,2462.6,2462.5,4.06080655]
[1750905702249,2.72625966,2462.6,2462.4,0.2024]
[1750905702413,1.753,2462.6,2462.5,4.0609137]
[1750905702616,2.72630235,2462.6,2462.4,4.26340171]
[1750905702817,1.753,2462.6,2462.4,4.26340171]
[1750905703723,1.753,2462.6,2462.5,4.0609137]
[1750905704049,2.72630791,2462.6,2462.5,4.0609137]
[1750905705057,2.72630791,2462.6,2462.4,4.26347659]
[1750905705221,1.753,2462.6,2462.4,4.26347659]
[1750905705423,1.753,2462.6,2462.5,4.0609137]
[1750905705642,2.72634082,2462.6,2462.4,4.26340692]
[1750905705843,1.753,2462.6,2462.4,4.26340692]
[1750905706041,0.97334641,2462.5,2462.4,4.26340692]
[1750905711555,1.753,2463.0,2462.9,4.06025417]
[1750905711759,2.72640505,2463.0,2462.9,4.06025417]
[1750905712057,2.72640505,2463.0,2462.9,4.26265417]
[1750905712436,0.97340505,2463.0,2462.9,4.26265417]
[1750905712664,2.72640505,2463.0,2462.9,4.26265417]
[1750905712962,0.97340505,2463.0,2462.9,4.26265417]
[1750905713129,0.97340505,2463.0,2462.9,0.2024]
[1750905713859,0.97340505,2463.0,2462.9,4.26265417]
[1750905715670,2.72517495,2463.1,2463.0,4.06008932]
[1750905715830,1.753,2463.1,2463.0,4.06008932]
[1750905717235,11.492,2463.2,2463.0,4.06008932]
[1750905717653,12.46360887,2463.2,2463.1,0.2024]
[1750905717838,12.46361952,2463.2,2463.1,0.2024]
[1750905718039,11.492,2463.2,2463.1,0.2024]
[1750905718558,12.46361952,2463.2,2463.1,0.2024]
[1750905718760,12.46361952,2463.2,2463.1,4.26232448]
[1750905718978,11.492,2463.2,2463.1,4.26232448]
[1750905719466,12.46361952,2463.2,2463.1,4.26232448]
[1750905719685,11.492,2463.2,2463.1,4.26232448]
[1750905719889,11.492,2463.2,2463.1,0.2024]
[1750905720184,12.46361952,2463.2,2463.1,4.26232448]
[1750905720345,11.492,2463.2,2463.1,4.26232448]
[1750905720857,11.492,2463.2,2463.1,0.2024]
[1750905721066,12.7383183,2463.2,2463.1,0.2024]
[1750905721267,20.38950128,2463.2,2463.1,0.2024]
[1750905722960,20.38950128,2463.2,2462.9,4.06019794]
[1750905723152,1.1733941,2463.1,2462.9,4.06019794]